lending/lending_fUSD_20250224
["ID","MTS","AMOUNT","RATE_DAILY","PERIOD"]
[354237921,1740358249330,-668.41,0.0001652,2]
[354237922,1740358249340,-1000.0,0.0001652,2]
[354237923,1740358249350,-500.0,0.0001652,2]
[354237924,1740358249359,-500.0,0.0001652,2]
[354237925,1740358249368,-500.0,0.0001652,2]
[354237926,1740358249378,-500.0,0.0001652,2]
[354237927,1740358249388,-500.0,0.0001652,2]
[354237928,1740358249397,-500.0,0.0001652,2]
[354237929,1740358249407,-500.0,0.0001652,2]
[354237930,1740358249417,-723.93,0.0001652,2]
[354237931,1740358249428,-717.89,0.0001652,2]
[354237932,1740358249438,-682.66,0.0001652,2]
[354237933,1740358249449,-500.0,0.0001652,2]
[354237934,1740358249458,-500.0,0.0001652,2]
[354237935,1740358249467,-500.0,0.0001652,2]
[354237936,1740358249477,-500.0,0.0001652,2]
[354237937,1740358249487,-500.0,0.0001652,2]
[354237938,1740358249496,-500.0,0.0001652,2]
[354237939,1740358249505,-500.0,0.0001652,2]
[354237940,1740358249514,-500.0,0.0001652,2]
[354237941,1740358249524,-530.77,0.0001652,2]
[354237942,1740358249534,-665.29,0.0001652,2]
[354237943,1740358249544,-515.78,0.0001652,2]
[354237944,1740358249553,-557.78,0.0001652,2]
[354237945,1740358249562,-585.45321727,0.0001652,2]
[354237946,1740358249571,-500.0,0.0001652,2]
[354237947,1740358249581,-514.96,0.0001652,2]
[354237948,1740358249590,-500.0,0.0001652,2]
[354237949,1740358249599,-500.0,0.0001652,2]
[354237950,1740358249609,-500.0,0.0001652,2]
[354237951,1740358249618,-500.0,0.0001652,2]
[354237952,1740358249627,-500.0,0.0001652,2]
[354237953,1740358249636,-500.0,0.0001652,2]
[354237954,1740358249646,-500.0,0.0001652,2]
[354237955,1740358249655,-500.0,0.0001652,2]
[354237956,1740358249664,-551.54,0.0001652,2]
[354237957,1740358249673,-500.0,0.0001652,2]
[354237958,1740358249684,-584.09,0.0001652,2]
[354237959,1740358249694,-628.64,0.0001652,2]
[354237960,1740358249703,-500.0,0.0001652,2]
[354237961,1740358249712,-569.91,0.0001652,2]
[354237962,1740358249721,-689.57,0.0001652,2]
[354237963,1740358249731,-500.0,0.0001652,2]
[354237964,1740358249740,-500.0,0.0001652,2]
[354237965,1740358249749,-500.0,0.0001652,2]
[354237966,1740358249759,-500.0,0.0001652,2]
[354237967,1740358249768,-500.0,0.0001652,2]
[354237968,1740358249777,-500.0,0.0001652,2]
[354237969,1740358249787,-500.0,0.0001652,2]
[354237970,1740358249796,-500.0,0.0001652,2]
[354237971,1740358249805,-500.0,0.0001652,2]
[354237972,1740358249814,-500.0,0.0001652,2]
[354237973,1740358249824,-500.0,0.0001652,2]
[354237974,1740358249833,-186.44462412,0.0001652,2]
[354237975,1740358249842,-500.0,0.0001652,2]
[354237976,1740358249853,-500.0,0.0001652,2]
[354237977,1740358249924,-500.0,0.0001652,2]
[354237978,1740358249935,-500.0,0.0001652,2]
[354237979,1740358249944,-500.0,0.0001652,2]
[354237980,1740358249954,-500.0,0.0001652,2]
[354237981,1740358249963,-629.32027111,0.0001652,2]
[354237982,1740358249973,-500.0,0.0001652,2]
[354237983,1740358249985,-500.0,0.0001652,2]
[354237984,1740358249995,-500.0,0.0001652,2]
[354237985,1740358250003,-1113.53,0.0001652,2]
[354237986,1740358250013,-1046.62,0.0001652,2]
[354237987,1740358250023,-519.81272706,0.0001652,2]
[354237988,1740358250032,-500.0,0.0001652,2]
[354237989,1740358250041,-829.38,0.0001652,2]
[354237990,1740358250050,-500.0,0.0001652,2]
[354237991,1740358250059,-510.80361462,0.0001652,2]
[354237992,1740358250069,-500.0,0.0001652,2]
[354237993,1740358250078,-500.0,0.0001652,2]
[354237994,1740358250088,-500.0,0.0001652,2]
[354237995,1740358250096,-697.08,0.0001652,2]
[354237996,1740358250106,-697.92,0.0001652,2]
[354237997,1740358250114,-907.49,0.0001652,2]
[354237998,1740358250124,-500.0,0.0001652,2]
[354237999,1740358250133,-582.06,0.0001652,2]
[354238000,1740358250142,-500.0,0.0001652,2]
[354238001,1740358250151,-500.0,0.0001652,2]
[354238002,1740358250160,-979.93,0.0001652,2]
[354238003,1740358250169,-500.0,0.0001652,2]
[354238004,1740358250179,-500.0,0.0001652,2]
[354238005,1740358250189,-500.0,0.0001652,2]
[354238006,1740358250198,-500.0,0.0001652,2]
[354238007,1740358250207,-946.06,0.0001652,2]
[354238008,1740358250216,-719.2,0.0001652,2]
[354238009,1740358250225,-500.0,0.0001652,2]
[354238010,1740358250234,-500.0,0.0001652,2]
[354238011,1740358250242,-1405.01,0.0001652,2]
[354238012,1740358250251,-500.0,0.0001652,2]
[354238013,1740358250260,-715.3,0.0001652,2]
[354238014,1740358250269,-500.0,0.0001652,2]
[354238015,1740358250278,-500.0,0.0001652,2]
[354238016,1740358250288,-606.09661134,0.0001652,2]
[354238017,1740358250297,-500.0,0.0001652,2]
[354238018,1740358250307,-500.0,0.0001652,2]
[354238019,1740358250316,-644.99,0.0001652,2]
[354238020,1740358250325,-500.0,0.0001652,2]
[354238021,1740358250334,-1098.18,0.0001652,2]
[354238022,1740358250343,-500.0,0.0001652,2]
[354238023,1740358250352,-500.0,0.0001652,2]
[354238024,1740358250361,-1047.29,0.0001652,2]
[354238025,1740358250370,-500.0,0.0001652,2]
[354238026,1740358250379,-500.0,0.0001652,2]
[354238027,1740358250389,-500.0,0.0001652,2]
[354238028,1740358250398,-770.7,0.0001652,2]
[354238029,1740358250407,-500.0,0.0001652,2]
[354238030,1740358250416,-500.0,0.0001652,2]
[354238031,1740358250425,-500.0,0.0001652,2]
[354238032,1740358250436,-579.34,0.0001652,2]
[354238033,1740358250445,-526.81,0.0001652,2]
[354238034,1740358250454,-974.06,0.0001652,2]
[354238035,1740358250463,-2065.56,0.0001652,2]
[354238036,1740358250472,-500.0,0.0001652,2]
[354238037,1740358250481,-737.97,0.0001652,2]
[354238038,1740358250490,-500.0,0.0001652,2]
[354238039,1740358250499,-500.0,0.0001652,2]
[354238040,1740358250509,-673.34,0.0001652,2]
[354238041,1740358250518,-655.06,0.0001652,2]
[354238042,1740358250527,-1694.0,0.0001652,2]
[354238043,1740358250536,-663.93,0.0001652,2]
[354238044,1740358250545,-500.0,0.0001652,2]
[354238045,1740358250554,-500.0,0.0001652,2]
[354238046,1740358250564,-500.0,0.0001652,2]
[354238047,1740358250573,-647.48,0.0001652,2]
[354238048,1740358250582,-500.0,0.0001652,2]
[354238049,1740358250591,-1181.95,0.0001652,2]
[354238050,1740358250601,-1201.41,0.0001652,2]
[354238051,1740358250610,-500.0,0.0001652,2]
[354238052,1740358250620,-1832.41,0.0001652,2]
[354238053,1740358250629,-731.18,0.0001652,2]
[354238054,1740358250639,-1043.26,0.0001652,2]
[354238055,1740358250648,-899.02,0.0001652,2]
[354238056,1740358250657,-500.0,0.0001652,2]
[354238057,1740358250667,-615.92,0.0001652,2]
[354238058,1740358250676,-884.83,0.0001652,2]
[354238059,1740358250685,-648.26,0.0001652,2]
[354238060,1740358250694,-500.0,0.0001652,2]
[354238061,1740358250703,-500.0,0.0001652,2]
[354238062,1740358250712,-183.80645641,0.0001652,2]
[354238063,1740358250721,-500.0,0.0001652,2]
[354238064,1740358250730,-530.67,0.0001652,2]
[354238065,1740358250738,-500.0,0.0001652,2]
[354238066,1740358250747,-794.72,0.0001652,2]
[354238067,1740358250757,-524.68,0.0001652,2]
[354238068,1740358250766,-777.33,0.0001652,2]
[354238069,1740358250776,-659.84,0.0001652,2]
[354238070,1740358250785,-986.46,0.0001652,2]
[354238071,1740358250795,-1576.54,0.0001652,2]
[354238072,1740358250805,-1012.97,0.0001652,2]
[354238073,1740358250814,-675.88,0.0001652,2]
[354238074,1740358250823,-1151.86,0.0001652,2]
[354238075,1740358250832,-601.66,0.0001652,2]
[354238076,1740358250841,-500.0,0.0001652,2]
[354238077,1740358250850,-500.0,0.0001652,2]
[354238078,1740358250858,-624.98,0.0001652,2]
[354238079,1740358250867,-500.0,0.0001652,2]
[354238080,1740358250877,-693.15,0.0001652,2]
[354238081,1740358250887,-500.0,0.0001652,2]
[354238082,1740358250896,-500.0,0.0001652,2]
[354238083,1740358250906,-500.0,0.0001652,2]
[354238084,1740358250914,-1057.1,0.0001652,2]
[354238085,1740358250923,-554.02,0.0001652,2]
[354238086,1740358250933,-596.28,0.0001652,2]
[354238087,1740358250944,-500.0,0.0001652,2]
[354238088,1740358250954,-500.0,0.0001652,2]
[354238089,1740358250963,-500.0,0.0001652,2]
[354238090,1740358250973,-736.89,0.0001652,2]
[354238091,1740358250982,-500.0,0.0001652,2]
[354238092,1740358250991,-500.0,0.0001652,2]
[354238093,1740358251000,-500.0,0.0001652,2]
[354238094,1740358251013,-508.25,0.0001652,2]
[354238095,1740358251022,-1121.66,0.0001652,2]
[354238096,1740358251030,-636.79,0.0001652,2]
[354238097,1740358251040,-500.0,0.0001652,2]
[354238098,1740358251050,-500.0,0.0001652,2]
[354238099,1740358251059,-516.96,0.0001652,2]
[354238100,1740358251068,-605.77,0.0001652,2]
[354238101,1740358251077,-391.35156191,0.0001652,2]
[354238102,1740358251087,-500.0,0.0001652,2]
[354238103,1740358251096,-500.0,0.0001652,2]
[354238104,1740358251105,-500.0,0.0001652,2]
[354238105,1740358251113,-500.0,0.0001652,2]
[354238106,1740358251122,-1172.8,0.0001652,2]
[354238107,1740358251131,-500.0,0.0001652,2]
[354238108,1740358251140,-500.0,0.0001652,2]
[354238109,1740358251149,-531.65,0.0001652,2]
[354238110,1740358251157,-500.0,0.0001652,2]
[354238111,1740358251166,-643.76,0.0001652,2]
[354238112,1740358251176,-758.88,0.0001652,2]
[354238113,1740358251184,-546.72,0.0001652,2]
[354238114,1740358251192,-500.0,0.0001652,2]
[354238115,1740358251201,-619.69,0.0001652,2]
[354238116,1740358251210,-1175.86,0.0001652,2]
[354238117,1740358251219,-543.05,0.0001652,2]
[354238118,1740358251228,-864.73,0.0001652,2]
[354238119,1740358251236,-596.92,0.0001652,2]
[354238120,1740358251244,-399.47171903,0.0001652,2]
[354238121,1740358251253,-500.0,0.0001652,2]
[354238122,1740358251262,-1011.85,0.0001652,2]
[354238123,1740358251271,-500.0,0.0001652,2]
[354238124,1740358251279,-500.0,0.0001652,2]
[354238125,1740358251288,-500.0,0.0001652,2]
[354238126,1740358251297,-1413.0,0.0001652,2]
[354238127,1740358251306,-500.0,0.0001652,2]
[354238128,1740358251315,-500.0,0.0001652,2]
[354238129,1740358251324,-500.0,0.0001652,2]
[354238130,1740358251332,-500.0,0.0001652,2]
[354238131,1740358251341,-1664.73,0.0001652,2]
[354238132,1740358251350,-500.0,0.0001652,2]
[354238133,1740358251360,-500.0,0.0001652,2]
[354238134,1740358251369,-500.0,0.0001652,2]
[354238135,1740358251378,-500.0,0.0001652,2]
[354238136,1740358251387,-772.81,0.0001652,2]
[354238137,1740358251396,-949.11,0.0001652,2]
[354238138,1740358251405,-500.0,0.0001652,2]
[354238139,1740358251414,-500.0,0.0001652,2]
[354238140,1740358251423,-500.0,0.0001652,2]
[354238141,1740358251432,-500.0,0.0001652,2]
[354238142,1740358251441,-500.0,0.0001652,2]
[354238143,1740358251451,-1451.96,0.0001652,2]
[354238144,1740358251460,-500.0,0.0001652,2]
[354238145,1740358251469,-925.71,0.0001652,2]
[354238146,1740358251478,-500.0,0.0001652,2]
[354238147,1740358251487,-1035.86,0.0001652,2]
[354238148,1740358251496,-668.53,0.0001652,2]
[354238149,1740358251505,-657.68,0.0001652,2]
[354238150,1740358251514,-500.0,0.0001652,2]
[354238151,1740358251523,-1378.3,0.0001652,2]
[354238152,1740358251532,-591.83639178,0.0001652,2]
[354238153,1740358251540,-500.0,0.0001652,2]
[354238154,1740358251550,-2763.3,0.0001652,2]
[354238155,1740358251559,-500.0,0.0001652,2]
[354238156,1740358251568,-500.0,0.0001652,2]
[354238157,1740358251577,-500.0,0.0001652,2]
[354238158,1740358251586,-742.01,0.0001652,2]
[354238159,1740358251595,-500.0,0.0001652,2]
[354238160,1740358251604,-925.02,0.0001652,2]
[354238161,1740358251613,-500.0,0.0001652,2]
[354238162,1740358251622,-1300.5,0.0001652,2]
[354238163,1740358251631,-500.0,0.0001652,2]
[354238164,1740358251639,-511.67278521,0.0001652,2]
[354238165,1740358251648,-500.0,0.0001652,2]
[354238166,1740358251657,-524.81,0.0001652,2]
[354238167,1740358251666,-500.0,0.0001652,2]
[354238168,1740358251675,-1321.6,0.0001652,2]
[354238169,1740358251684,-500.0,0.0001652,2]
[354238170,1740358251693,-922.01,0.0001652,2]
[354238171,1740358251702,-522.28,0.0001652,2]
[354238172,1740358251711,-500.0,0.0001652,2]
[354238173,1740358251720,-500.0,0.0001652,2]
[354238174,1740358251729,-633.17,0.0001652,2]
[354238175,1740358251738,-500.0,0.0001652,2]
[354238176,1740358251747,-1370.67,0.0001652,2]
[354238177,1740358251757,-500.0,0.0001652,2]
[354238178,1740358251766,-500.0,0.0001652,2]
[354238179,1740358251775,-500.0,0.0001652,2]
[354238180,1740358251784,-796.23,0.0001652,2]
[354238181,1740358251793,-634.63,0.0001652,2]
[354238182,1740358251801,-668.85,0.0001652,2]
[354238183,1740358251810,-500.0,0.0001652,2]
[354238184,1740358251819,-500.0,0.0001652,2]
[354238185,1740358251827,-500.0,0.0001652,2]
[354238186,1740358251836,-500.0,0.0001652,2]
[354238187,1740358251845,-905.22,0.0001652,2]
[354238188,1740358251855,-500.0,0.0001652,2]
[354238189,1740358251864,-500.0,0.0001652,2]
[354238190,1740358251873,-662.28,0.0001652,2]
[354238191,1740358251882,-500.0,0.0001652,2]
[354238192,1740358251891,-577.46,0.0001652,2]
[354238193,1740358251900,-500.0,0.0001652,2]
[354238194,1740358251909,-500.0,0.0001652,2]
[354238195,1740358251918,-500.0,0.0001652,2]
[354238196,1740358251928,-500.0,0.0001652,2]
[354238197,1740358251937,-500.0,0.0001652,2]
[354238198,1740358251945,-500.0,0.0001652,2]
[354238199,1740358251953,-500.0,0.0001652,2]
[354238200,1740358251962,-500.0,0.0001652,2]
[354238201,1740358251971,-500.0,0.0001652,2]
[354238202,1740358251980,-500.0,0.0001652,2]
[354238203,1740358251989,-500.0,0.0001652,2]
[354238204,1740358251999,-500.0,0.0001652,2]
[354238205,1740358252011,-500.0,0.0001652,2]
[354238206,1740358252020,-500.0,0.0001652,2]
[354238207,1740358252030,-615.86,0.0001652,2]
[354238208,1740358252038,-500.0,0.0001652,2]
[354238209,1740358252050,-500.0,0.0001652,2]
[354238210,1740358252059,-1418.34,0.0001652,2]
[354238211,1740358252068,-859.64,0.0001652,2]
[354238212,1740358252077,-1828.32,0.0001652,2]
[354238213,1740358252087,-500.0,0.0001652,2]
[354238214,1740358252096,-514.09,0.0001652,2]
[354238215,1740358252105,-500.0,0.0001652,2]
[354238216,1740358252114,-651.72,0.0001652,2]
[354238217,1740358252123,-500.0,0.0001652,2]
[354238218,1740358252133,-3627.16,0.0001652,2]
[354238219,1740358252142,-598.24,0.0001652,2]
[354238220,1740358252151,-500.0,0.0001652,2]
[354238221,1740358252159,-500.0,0.0001652,2]
[354238222,1740358252168,-2753.14,0.0001652,2]
[354238223,1740358252177,-500.0,0.0001652,2]
[354238224,1740358252187,-500.0,0.0001652,2]
[354238225,1740358252196,-500.0,0.0001652,2]
[354238226,1740358252204,-500.0,0.0001652,2]
[354238227,1740358252213,-523.71,0.0001652,2]
[354238228,1740358252222,-500.0,0.0001652,2]
[354238229,1740358252231,-500.0,0.0001652,2]
[354238230,1740358252240,-500.0,0.0001652,2]
[354238231,1740358252249,-478.72,0.0001652,2]
[354238232,1740358252258,-500.0,0.0001652,2]
[354238233,1740358252266,-500.0,0.0001652,2]
[354238234,1740358252275,-1420.58,0.0001652,2]
[354238235,1740358252285,-500.0,0.0001652,2]
[354238236,1740358252294,-2686.52,0.0001652,2]
[354238237,1740358252303,-500.0,0.0001652,2]
[354238238,1740358252312,-158.770435,0.0001652,2]
[354238239,1740358252321,-500.0,0.0001652,2]
[354238240,1740358252330,-1038.18,0.0001652,2]
[354238241,1740358252339,-500.0,0.0001652,2]
[354238242,1740358252348,-564.7,0.0001652,2]
[354238243,1740358252357,-500.0,0.0001652,2]
[354238244,1740358252366,-1574.93,0.0001652,2]
[354238245,1740358252375,-4979.54,0.0001652,2]
[354238246,1740358252384,-500.0,0.0001652,2]
[354238247,1740358252392,-500.0,0.0001652,2]
[354238248,1740358252402,-3406.96,0.0001652,2]
[354238249,1740358252411,-2338.87,0.0001652,2]
[354238250,1740358252419,-500.0,0.0001652,2]
[354238251,1740358252428,-788.85,0.0001652,2]
[354238252,1740358252437,-500.0,0.0001652,2]
[354238253,1740358252445,-938.07,0.0001652,2]
[354238254,1740358252454,-2628.46,0.0001652,2]
[354238255,1740358252462,-2070.58,0.0001652,2]
[354238256,1740358252472,-662.83,0.0001652,2]
[354238257,1740358252481,-1200.64,0.0001652,2]
[354238258,1740358252490,-500.0,0.0001652,2]
[354238259,1740358252499,-514.23783801,0.0001652,2]
[354238260,1740358252508,-500.0,0.0001652,2]
[354238261,1740358252517,-1005.75,0.0001652,2]
[354238262,1740358252526,-500.0,0.0001652,2]
[354238263,1740358252536,-2085.47,0.0001652,2]
[354238264,1740358252545,-500.0,0.0001652,2]
[354238265,1740358252555,-500.0,0.0001652,2]
[354238266,1740358252564,-1050.69,0.0001652,2]
[354238267,1740358252573,-1290.94,0.0001652,2]
[354238268,1740358252582,-538.21,0.0001652,2]
[354238269,1740358252592,-2233.23,0.0001652,2]
[354238270,1740358252601,-500.0,0.0001652,2]
[354238271,1740358252610,-500.0,0.0001652,2]
[354238272,1740358252619,-562.43,0.0001652,2]
[354238273,1740358252628,-500.0,0.0001652,2]
[354238274,1740358252638,-2803.95,0.0001652,2]
[354238275,1740358252647,-1240.14,0.0001652,2]
[354238276,1740358252656,-500.0,0.0001652,2]
[354238277,1740358252664,-500.0,0.0001652,2]
[354238278,1740358252673,-2092.69,0.0001652,2]
[354238279,1740358252685,-1844.28,0.0001652,2]
[354238280,1740358252694,-1938.87,0.0001652,2]
[354238281,1740358252704,-2686.08,0.0001652,2]
[354238282,1740358252713,-500.0,0.0001652,2]
[354238283,1740358252723,-500.0,0.0001652,2]
[354238284,1740358252732,-542.27,0.0001652,2]
[354238285,1740358252741,-883.26,0.0001652,2]
[354238286,1740358252750,-623.79,0.0001652,2]
[354238287,1740358252759,-500.0,0.0001652,2]
[354238288,1740358252768,-2102.51,0.0001652,2]
[354238289,1740358252777,-2301.4,0.0001652,2]
[354238290,1740358252787,-825.63,0.0001652,2]
[354238291,1740358252796,-6345.26,0.0001652,2]
[354238292,1740358252805,-509.15,0.0001652,2]
[354238293,1740358252814,-500.0,0.0001652,2]
[354238294,1740358252823,-500.0,0.0001652,2]
[354238295,1740358252832,-500.0,0.0001652,2]
[354238296,1740358252841,-1733.09,0.0001652,2]
[354238297,1740358252850,-500.0,0.0001652,2]
[354238298,1740358252859,-694.13,0.0001652,2]
[354238299,1740358252868,-1001.88,0.0001652,2]
[354238300,1740358252878,-500.0,0.0001652,2]
[354238301,1740358252887,-1385.38,0.0001652,2]
[354238302,1740358252896,-500.0,0.0001652,2]
[354238303,1740358252905,-500.0,0.0001652,2]
[354238304,1740358252914,-641.91,0.0001652,2]
[354238305,1740358252923,-1123.7,0.0001652,2]
[354238306,1740358252933,-531.51,0.0001652,2]
[354238307,1740358252942,-500.0,0.0001652,2]
[354238308,1740358252951,-722.69,0.0001652,2]
[354238309,1740358252960,-500.0,0.0001652,2]
[354238310,1740358252969,-926.4,0.0001652,2]
[354238311,1740358252978,-2046.81,0.0001652,2]
[354238312,1740358252988,-1733.33,0.0001652,2]
[354238313,1740358252998,-556.71,0.0001652,2]
[354238314,1740358253007,-500.0,0.0001652,2]
[354238315,1740358253016,-500.0,0.0001652,2]
[354238316,1740358253025,-2033.0,0.0001652,2]
[354238317,1740358253034,-670.46,0.0001652,2]
[354238318,1740358253043,-500.0,0.0001652,2]
[354238319,1740358253052,-2470.73,0.0001652,2]
[354238320,1740358253061,-1063.42,0.0001652,2]
[354238321,1740358253070,-678.07,0.0001652,2]
[354238322,1740358253078,-500.0,0.0001652,2]
[354238323,1740358253088,-500.0,0.0001652,2]
[354238324,1740358253097,-500.0,0.0001652,2]
[354238325,1740358253106,-2186.39,0.0001652,2]
[354238326,1740358253116,-195.12767967,0.0001652,2]
[354238327,1740358253126,-500.0,0.0001652,2]
[354238328,1740358253135,-815.4,0.0001652,2]
[354238329,1740358253144,-500.0,0.0001652,2]
[354238330,1740358253154,-1691.82,0.0001652,2]
[354238331,1740358253163,-431.31095712,0.0001652,2]
[354238332,1740358253172,-500.0,0.0001652,2]
[354238333,1740358253182,-1551.25,0.0001652,2]
[354238334,1740358253191,-1571.91,0.0001652,2]
[354238335,1740358253200,-1574.31,0.0001652,2]
[354238336,1740358253210,-500.0,0.0001652,2]
[354238337,1740358253218,-5723.25,0.0001652,2]
[354238338,1740358253228,-580.88,0.0001652,2]
[354238339,1740358253237,-500.0,0.0001652,2]
[354238340,1740358253246,-1279.92,0.0001652,2]
[354238341,1740358253255,-1218.89,0.0001652,2]
[354238342,1740358253264,-1347.08,0.0001652,2]
[354238343,1740358253273,-500.0,0.0001652,2]
[354238344,1740358253283,-500.0,0.0001652,2]
[354238345,1740358253292,-779.06,0.0001652,2]
[354238346,1740358253301,-500.0,0.0001652,2]
[354238347,1740358253310,-2194.01,0.0001652,2]
[354238348,1740358253319,-1435.05,0.0001652,2]
[354238349,1740358253328,-1575.39,0.0001652,2]
[354238350,1740358253337,-2630.4,0.0001652,2]
[354238351,1740358253345,-500.0,0.0001652,2]
[354238352,1740358253355,-500.0,0.0001652,2]
[354238353,1740358253363,-1967.1,0.0001652,2]
[354238354,1740358253373,-1296.04,0.0001652,2]
[354238355,1740358253382,-1218.14,0.0001652,2]
[354238356,1740358253391,-507.57705736,0.0001652,2]
[354238357,1740358253400,-2059.58,0.0001652,2]
[354238358,1740358253409,-500.0,0.0001652,2]
[354238359,1740358253418,-1182.65,0.0001652,2]
[354238360,1740358253428,-500.0,0.0001652,2]
[354238361,1740358253437,-500.0,0.0001652,2]
[354238362,1740358253446,-2043.69,0.0001652,2]
[354238363,1740358253455,-500.0,0.0001652,2]
[354238364,1740358253463,-1065.58,0.0001652,2]
[354238365,1740358253472,-509.76,0.0001652,2]
[354238366,1740358253482,-2885.83,0.0001652,2]
[354238367,1740358253491,-500.0,0.0001652,2]
[354238368,1740358253500,-568.7,0.0001652,2]
[354238369,1740358253509,-500.0,0.0001652,2]
[354238370,1740358253519,-1338.71,0.0001652,2]
[354238371,1740358253528,-500.0,0.0001652,2]
[354238372,1740358253537,-3198.66,0.0001652,2]
[354238373,1740358253546,-2031.36,0.0001652,2]
[354238374,1740358253555,-888.68,0.0001652,2]
[354238375,1740358253564,-500.0,0.0001652,2]
[354238376,1740358253573,-500.0,0.0001652,2]
[354238377,1740358253582,-500.0,0.0001652,2]
[354238378,1740358253592,-2936.94,0.0001652,2]
[354238379,1740358253601,-500.0,0.0001652,2]
[354238380,1740358253610,-500.0,0.0001652,2]
[354238381,1740358253620,-500.0,0.0001652,2]
[354238382,1740358253629,-1791.84,0.0001652,2]
[354238383,1740358253638,-500.0,0.0001652,2]
[354238384,1740358253647,-627.55014019,0.0001652,2]
[354238385,1740358253657,-4925.3,0.0001652,2]
[354238386,1740358253666,-500.0,0.0001652,2]
[354238387,1740358253675,-500.0,0.0001652,2]
[354238388,1740358253685,-2292.2,0.0001652,2]
[354238389,1740358253695,-584.53447835,0.0001652,2]
[354238390,1740358253704,-967.02,0.0001652,2]
[354238391,1740358253713,-505.42791807,0.0001652,2]
[354238392,1740358253722,-500.0,0.0001652,2]
[354238393,1740358253732,-500.0,0.0001652,2]
[354238394,1740358253742,-500.0,0.0001652,2]
[354238395,1740358253751,-500.0,0.0001652,2]
[354238396,1740358253763,-500.0,0.0001652,2]
[354238397,1740358253772,-500.0,0.0001652,2]
[354238398,1740358253781,-151.37416307,0.0001652,2]
[354238399,1740358253790,-1064.75,0.0001652,2]
[354238400,1740358253799,-500.0,0.0001652,2]
[354238401,1740358253809,-1142.35,0.0001652,2]
[354238402,1740358253924,-2961.63,0.0001652,2]
[354238403,1740358253935,-910.11,0.0001652,2]
[354238404,1740358253945,-1504.32,0.0001652,2]
[354238405,1740358253954,-597.6,0.0001652,2]
[354238406,1740358253964,-2545.12,0.0001652,2]
[354238407,1740358253973,-500.0,0.0001652,2]
[354238408,1740358253982,-500.0,0.0001652,2]
[354238409,1740358253992,-1353.0,0.0001652,2]
[354238410,1740358254001,-500.0,0.0001652,2]
[354238411,1740358254013,-963.82,0.0001652,2]
[354238412,1740358254023,-616.18,0.0001652,2]
[354238413,1740358254031,-500.0,0.0001652,2]
[354238414,1740358254040,-500.0,0.0001652,2]
[354238415,1740358254049,-1756.04,0.0001652,2]
[354238416,1740358254058,-683.22,0.0001652,2]
[354238417,1740358254068,-500.0,0.0001652,2]
[354238418,1740358254077,-500.0,0.0001652,2]
[354238419,1740358254088,-1461.05,0.0001652,2]
[354238420,1740358254098,-500.0,0.0001652,2]